[Event "Titled Tuesday Blitz July 18 Early 2023"]
[White "Bortnyk, Olexandr"]
[Black "Panesar Vedant"]
[WhiteFideId "14120828"]
[BlackFideId "35033018"]
[WhiteElo "3032"]
[BlackElo "2729"]
[Result "1-0"]
[Round "3"]
[TimeControl "180+2"]
[Date "2023.07.18"]
[WhiteClock "0:01:08"]
[BlackClock "0:00:00"]
[Board "5"]

1. e4 {[%clk 0:03:00]}  e5 {[%clk 0:02:53]} 2. Nf3 {[%clk 0:03:00]}  Nc6 {[%clk 0:02:52]} 3. Bb5 {[%clk 0:03:00]}  Nf6 {[%clk 0:02:46]} 4. Qe2 {[%clk 0:02:58]}  Bd6 {[%clk 0:02:42]} 5. c3 {[%clk 0:02:56]}  a6 {[%clk 0:02:35]} 6. Ba4 {[%clk 0:02:56]}  O-O {[%clk 0:02:30]} 7. d3 {[%clk 0:02:55]}  b5 {[%clk 0:02:29]} 8. Bc2 {[%clk 0:02:55]}  Be7 {[%clk 0:02:20]} 9. O-O {[%clk 0:02:54]}  d5 {[%clk 0:02:16]} 10. h3 {[%clk 0:02:54]}  h6 {[%clk 0:02:12]} 11. Rd1 {[%clk 0:02:50]}  d4 {[%clk 0:02:06]} 12. Nbd2 {[%clk 0:02:41]}  Be6 {[%clk 0:01:59]} 13. Nf1 {[%clk 0:02:38]}  a5 {[%clk 0:01:46]} 14. Ng3 {[%clk 0:02:30]}  Qd7 {[%clk 0:01:35]} 15. Nh4 {[%clk 0:02:21]}  dxc3 {[%clk 0:01:29]} 16. bxc3 {[%clk 0:02:20]}  b4 {[%clk 0:01:30]} 17. Bb2 {[%clk 0:02:16]}  bxc3 {[%clk 0:01:27]} 18. Bxc3 {[%clk 0:02:17]}  Bb4 {[%clk 0:01:13]} 19. Bb2 {[%clk 0:02:16]}  Nd4 {[%clk 0:01:11]} 20. Bxd4 {[%clk 0:02:16]}  exd4 {[%clk 0:01:04]} 21. Nhf5 {[%clk 0:02:09]}  Bc3 {[%clk 0:01:00]} 22. Rac1 {[%clk 0:02:00]}  Bxa2 {[%clk 0:00:53]} 23. e5 {[%clk 0:01:57]}  Rae8 {[%clk 0:00:36]} 24. f4 {[%clk 0:01:56]}  Be6 {[%clk 0:00:31]} 25. Nxg7 {[%clk 0:01:48]}  Kxg7 {[%clk 0:00:18]} 26. exf6+ {[%clk 0:01:49]}  Kh7 {[%clk 0:00:15]} 27. Qe4+ {[%clk 0:01:47]}  Kh8 {[%clk 0:00:16]} 28. f5 {[%clk 0:01:48]}  Bd5 {[%clk 0:00:03]} 29. Qf4 {[%clk 0:01:34]}  Kh7 {[%clk 0:00:03]} 30. Ne4 {[%clk 0:01:34]}  Bxe4 {[%clk 0:00:02]} 31. dxe4 {[%clk 0:01:35]}  Qd6 {[%clk 0:00:02]} 32. Qxd6 {[%clk 0:01:27]}  cxd6 {[%clk 0:00:03]} 33. Rb1 {[%clk 0:01:28]}  Rb8 {[%clk 0:00:02]} 34. Bb3 {[%clk 0:01:29]}  Rb4 {[%clk 0:00:02]} 35. Bd5 {[%clk 0:01:26]}  d3 {[%clk 0:00:01]} 36. Rxb4 {[%clk 0:01:25]}  axb4 {[%clk 0:00:02]} 37. Rxd3 {[%clk 0:01:25]}  Bxf6 {[%clk 0:00:02]} 38. Bb3 {[%clk 0:01:18]}  Bc3 {[%clk 0:00:03]} 39. Rxd6 {[%clk 0:01:18]}  Re8 {[%clk 0:00:04]} 40. Bd5 {[%clk 0:01:12]}  f6 {[%clk 0:00:04]} 41. Rd7+ {[%clk 0:01:12]}  Kh8 {[%clk 0:00:04]} 42. Rb7 {[%clk 0:01:08]}  Rd8 {[%clk 0:00:03]} 43. Kf2 {[%clk 0:01:08]}  Rc8 {[%clk 0:00:03]} 44. Kf3 {[%clk 0:01:08]}  Bd2 {[%clk 0:00:03]} 45. Kg4 {[%clk 0:01:08]}  Bc3 {[%clk 0:00:00]} 46. Kh5 {[%clk 0:01:08]} 1-0


[Site "https://www.chess.com"]

[Event "Titled Tuesday Blitz July 18 Early 2023"]
[White "Stoyanov, Tsvetan"]
[Black "Sarana, Alexey"]
[WhiteFideId "2917173"]
[BlackFideId "24133795"]
[WhiteElo "2724"]
[BlackElo "3024"]
[Result "0-1"]
[Round "3"]
[TimeControl "180+2"]
[Date "2023.07.18"]
[WhiteClock "0:00:03"]
[BlackClock "0:00:05"]
[Board "7"]

1. c4 {[%clk 0:03:00]}  e6 {[%clk 0:02:53]} 2. Nc3 {[%clk 0:03:01]}  d5 {[%clk 0:02:54]} 3. e3 {[%clk 0:03:01]}  Nf6 {[%clk 0:02:54]} 4. Nf3 {[%clk 0:03:01]}  Bd6 {[%clk 0:02:55]} 5. b3 {[%clk 0:03:02]}  b6 {[%clk 0:02:55]} 6. Bb2 {[%clk 0:03:02]}  Bb7 {[%clk 0:02:55]} 7. cxd5 {[%clk 0:03:02]}  exd5 {[%clk 0:02:56]} 8. d4 {[%clk 0:03:02]}  O-O {[%clk 0:02:55]} 9. Bd3 {[%clk 0:03:02]}  Re8 {[%clk 0:02:55]} 10. O-O {[%clk 0:03:02]}  Nbd7 {[%clk 0:02:55]} 11. Nb5 {[%clk 0:03:01]}  Bf8 {[%clk 0:02:55]} 12. Rc1 {[%clk 0:03:01]}  c6 {[%clk 0:02:55]} 13. Nc3 {[%clk 0:03:01]}  Ne4 {[%clk 0:02:53]} 14. Ne2 {[%clk 0:02:43]}  Bd6 {[%clk 0:02:52]} 15. Nd2 {[%clk 0:02:38]}  f5 {[%clk 0:02:48]} 16. Nf3 {[%clk 0:02:31]}  Qf6 {[%clk 0:02:46]} 17. Ng3 {[%clk 0:02:15]}  Re7 {[%clk 0:02:39]} 18. Rc2 {[%clk 0:02:13]}  Rae8 {[%clk 0:02:38]} 19. Qc1 {[%clk 0:02:11]}  g5 {[%clk 0:01:36]} 20. Rxc6 {[%clk 0:01:37]}  g4 {[%clk 0:01:11]} 21. Ne5 {[%clk 0:01:23]}  Bxc6 {[%clk 0:01:09]} 22. Qxc6 {[%clk 0:01:01]}  Qe6 {[%clk 0:00:58]} 23. Nxf5 {[%clk 0:00:46]}  Qxf5 {[%clk 0:00:35]} 24. Qxd5+ {[%clk 0:00:46]}  Qe6 {[%clk 0:00:22]} 25. Qxe4 {[%clk 0:00:46]}  Nf6 {[%clk 0:00:19]} 26. Qf4 {[%clk 0:00:44]}  Nd5 {[%clk 0:00:16]} 27. Qg5+ {[%clk 0:00:37]}  Rg7 {[%clk 0:00:17]} 28. Qh5 {[%clk 0:00:37]}  Nf6 {[%clk 0:00:17]} 29. Qh4 {[%clk 0:00:35]}  Qe7 {[%clk 0:00:07]} 30. Bc4+ {[%clk 0:00:34]}  Kh8 {[%clk 0:00:07]} 31. Nc6 {[%clk 0:00:20]}  Qf8 {[%clk 0:00:06]} 32. d5 {[%clk 0:00:20]}  Rg6 {[%clk 0:00:07]} 33. Bd3 {[%clk 0:00:16]}  Rh6 {[%clk 0:00:07]} 34. Bxf6+ {[%clk 0:00:06]}  Qxf6 {[%clk 0:00:07]} 35. Qxf6+ {[%clk 0:00:06]}  Rxf6 {[%clk 0:00:08]} 36. e4 {[%clk 0:00:05]}  a5 {[%clk 0:00:06]} 37. Re1 {[%clk 0:00:05]}  Rh6 {[%clk 0:00:03]} 38. e5 {[%clk 0:00:05]}  Rh5 {[%clk 0:00:04]} 39. f4 {[%clk 0:00:03]}  gxf3 {[%clk 0:00:03]} 40. exd6 {[%clk 0:00:01]}  Rxe1+ {[%clk 0:00:02]} 41. Kf2 {[%clk 0:00:02]}  Rxd5 {[%clk 0:00:02]} 42. Kxe1 {[%clk 0:00:02]}  fxg2 {[%clk 0:00:03]} 43. Bc4 {[%clk 0:00:02]}  g1=Q+ {[%clk 0:00:03]} 44. Ke2 {[%clk 0:00:02]}  Rxd6 {[%clk 0:00:03]} 45. Ne5 {[%clk 0:00:03]}  Qxh2+ {[%clk 0:00:03]} 46. Ke3 {[%clk 0:00:03]}  Qxe5+ {[%clk 0:00:04]} 47. Kf3 {[%clk 0:00:03]}  Rf6+ {[%clk 0:00:05]} 0-1


[Site "https://www.chess.com"]

[Event "Titled Tuesday Blitz July 18 Early 2023"]
[White "Duda, Jan-Krzysztof"]
[Black "Leiva, Gianmarco"]
[WhiteFideId "1170546"]
[BlackFideId "3804399"]
[WhiteElo "3019"]
[BlackElo "2719"]
[Result "1-0"]
[Round "3"]
[TimeControl "180+2"]
[Date "2023.07.18"]
[WhiteClock "0:00:04"]
[BlackClock "0:00:02"]
[Board "8"]

1. e4 {[%clk 0:03:00]}  c5 {[%clk 0:03:00]} 2. Nf3 {[%clk 0:03:00]}  d6 {[%clk 0:03:00]} 3. Bb5+ {[%clk 0:03:00]}  Nd7 {[%clk 0:03:00]} 4. O-O {[%clk 0:02:56]}  a6 {[%clk 0:02:58]} 5. Bd3 {[%clk 0:02:56]}  Ngf6 {[%clk 0:02:56]} 6. c3 {[%clk 0:02:56]}  b5 {[%clk 0:02:46]} 7. a4 {[%clk 0:02:55]}  Bb7 {[%clk 0:02:40]} 8. Re1 {[%clk 0:02:52]}  c4 {[%clk 0:02:39]} 9. Bc2 {[%clk 0:02:52]}  e6 {[%clk 0:02:34]} 10. d4 {[%clk 0:02:46]}  cxd3 {[%clk 0:02:30]} 11. Qxd3 {[%clk 0:02:45]}  Be7 {[%clk 0:02:08]} 12. axb5 {[%clk 0:02:22]}  axb5 {[%clk 0:02:09]} 13. Rxa8 {[%clk 0:02:22]}  Qxa8 {[%clk 0:02:10]} 14. Nbd2 {[%clk 0:02:11]}  O-O {[%clk 0:02:00]} 15. Qxb5 {[%clk 0:02:11]}  Nc5 {[%clk 0:01:53]} 16. Qe2 {[%clk 0:02:00]}  Ba6 {[%clk 0:01:36]} 17. c4 {[%clk 0:02:00]}  Rb8 {[%clk 0:01:36]} 18. b3 {[%clk 0:02:00]}  e5 {[%clk 0:01:34]} 19. Ba3 {[%clk 0:01:52]}  Nfd7 {[%clk 0:01:33]} 20. Ra1 {[%clk 0:01:49]}  Ne6 {[%clk 0:01:31]} 21. b4 {[%clk 0:01:39]}  Rc8 {[%clk 0:00:40]} 22. g3 {[%clk 0:01:17]}  Nf6 {[%clk 0:00:21]} 23. Bd3 {[%clk 0:01:10]}  Bb7 {[%clk 0:00:20]} 24. Bb2 {[%clk 0:01:06]}  Qb8 {[%clk 0:00:20]} 25. Nb3 {[%clk 0:01:02]}  Bd8 {[%clk 0:00:20]} 26. c5 {[%clk 0:00:51]}  Ba8 {[%clk 0:00:16]} 27. Ba6 {[%clk 0:00:34]}  Rc6 {[%clk 0:00:13]} 28. b5 {[%clk 0:00:31]}  Rxc5 {[%clk 0:00:13]} 29. Nxc5 {[%clk 0:00:28]}  Nxc5 {[%clk 0:00:14]} 30. Ba3 {[%clk 0:00:20]}  Bb6 {[%clk 0:00:13]} 31. Bxc5 {[%clk 0:00:18]}  Bxc5 {[%clk 0:00:14]} 32. Nd2 {[%clk 0:00:19]}  h5 {[%clk 0:00:13]} 33. Kg2 {[%clk 0:00:18]}  Ng4 {[%clk 0:00:13]} 34. f3 {[%clk 0:00:18]}  Nf6 {[%clk 0:00:12]} 35. Nb3 {[%clk 0:00:16]}  Bb6 {[%clk 0:00:12]} 36. Rc1 {[%clk 0:00:17]}  Kh7 {[%clk 0:00:09]} 37. Rc8 {[%clk 0:00:13]}  Qa7 {[%clk 0:00:09]} 38. Qd3 {[%clk 0:00:13]}  Bg1 {[%clk 0:00:09]} 39. Rc2 {[%clk 0:00:12]}  Qb6 {[%clk 0:00:04]} 40. Bc8 {[%clk 0:00:07]}  g5 {[%clk 0:00:04]} 41. Bf5+ {[%clk 0:00:06]}  Kg7 {[%clk 0:00:04]} 42. Rd2 {[%clk 0:00:04]}  Be3 {[%clk 0:00:04]} 43. Rd1 {[%clk 0:00:04]}  g4 {[%clk 0:00:04]} 44. Nd2 {[%clk 0:00:04]}  Bb7 {[%clk 0:00:01]} 45. Nc4 {[%clk 0:00:04]}  gxf3+ {[%clk 0:00:01]} 46. Kxf3 {[%clk 0:00:04]}  Qd4 {[%clk 0:00:01]} 47. Nxe3 {[%clk 0:00:04]}  Bxe4+ {[%clk 0:00:01]} 48. Bxe4 {[%clk 0:00:04]}  Nxe4 {[%clk 0:00:01]} 49. Qxd4 {[%clk 0:00:05]}  Ng5+ {[%clk 0:00:02]} 50. Ke2 {[%clk 0:00:05]}  exd4 {[%clk 0:00:02]} 51. b6 {[%clk 0:00:04]}  Ne4 {[%clk 0:00:02]} 1-0


[Site "https://www.chess.com"]

[Event "Titled Tuesday Blitz July 18 Early 2023"]
[White "Oparin, Grigoriy"]
[Black "Matinian, Nikita"]
[WhiteFideId "24125890"]
[BlackFideId "24129100"]
[WhiteElo "2980"]
[BlackElo "2710"]
[Result "1-0"]
[Round "3"]
[TimeControl "180+2"]
[Date "2023.07.18"]
[WhiteClock "0:00:44"]
[BlackClock "0:00:33"]
[Board "10"]

1. c4 {[%clk 0:03:00]}  e5 {[%clk 0:02:59]} 2. Nc3 {[%clk 0:03:01]}  Nf6 {[%clk 0:03:00]} 3. Nf3 {[%clk 0:03:02]}  Nc6 {[%clk 0:02:59]} 4. g3 {[%clk 0:03:02]}  Bb4 {[%clk 0:02:59]} 5. Bg2 {[%clk 0:03:00]}  O-O {[%clk 0:02:59]} 6. Nd5 {[%clk 0:02:58]}  e4 {[%clk 0:02:57]} 7. Nh4 {[%clk 0:02:55]}  Re8 {[%clk 0:02:49]} 8. O-O {[%clk 0:02:46]}  g5 {[%clk 0:02:48]} 9. Nf5 {[%clk 0:02:43]}  d6 {[%clk 0:02:42]} 10. d3 {[%clk 0:01:57]}  Nxd5 {[%clk 0:02:23]} 11. Nh6+ {[%clk 0:01:56]}  Kg7 {[%clk 0:02:23]} 12. cxd5 {[%clk 0:01:57]}  Ne5 {[%clk 0:02:17]} 13. Qa4 {[%clk 0:01:25]}  a5 {[%clk 0:02:00]} 14. d4 {[%clk 0:01:17]}  Bd7 {[%clk 0:01:36]} 15. Qc2 {[%clk 0:01:17]}  Kxh6 {[%clk 0:01:16]} 16. a3 {[%clk 0:01:16]}  Ng6 {[%clk 0:01:04]} 17. axb4 {[%clk 0:01:16]}  axb4 {[%clk 0:01:02]} 18. Rxa8 {[%clk 0:01:17]}  Qxa8 {[%clk 0:01:03]} 19. Qxc7 {[%clk 0:01:17]}  Qd8 {[%clk 0:00:54]} 20. Qxd6 {[%clk 0:01:14]}  Bf5 {[%clk 0:00:54]} 21. Qc5 {[%clk 0:00:52]}  b6 {[%clk 0:00:54]} 22. Qxb4 {[%clk 0:00:48]}  Qxd5 {[%clk 0:00:53]} 23. Qxb6 {[%clk 0:00:48]}  Bg4 {[%clk 0:00:44]} 24. h4 {[%clk 0:00:46]}  Bxe2 {[%clk 0:00:39]} 25. Bxg5+ {[%clk 0:00:46]}  Kg7 {[%clk 0:00:39]} 26. Qf6+ {[%clk 0:00:43]}  Kg8 {[%clk 0:00:33]} 27. Bh6 {[%clk 0:00:44]} 1-0


[Site "https://www.chess.com"]

[Event "Titled Tuesday Blitz July 18 Early 2023"]
[White "Basso, Pier Luigi"]
[Black "Svane, Rasmus"]
[WhiteFideId "866970"]
[BlackFideId "4657101"]
[WhiteElo "2703"]
[BlackElo "2965"]
[Result "0-1"]
[Round "3"]
[TimeControl "180+2"]
[Date "2023.07.18"]
[WhiteClock "0:00:09"]
[BlackClock "0:00:53"]
[Board "12"]

1. d4 {[%clk 0:03:00]}  d5 {[%clk 0:02:57]} 2. c4 {[%clk 0:02:58]}  e6 {[%clk 0:02:57]} 3. Nf3 {[%clk 0:02:57]}  a6 {[%clk 0:02:57]} 4. cxd5 {[%clk 0:02:57]}  exd5 {[%clk 0:02:58]} 5. Nc3 {[%clk 0:02:57]}  Nf6 {[%clk 0:02:58]} 6. Bg5 {[%clk 0:02:57]}  Be6 {[%clk 0:02:58]} 7. e3 {[%clk 0:02:57]}  Nbd7 {[%clk 0:02:58]} 8. Bd3 {[%clk 0:02:57]}  Bd6 {[%clk 0:02:59]} 9. Qc2 {[%clk 0:02:57]}  c6 {[%clk 0:02:59]} 10. a3 {[%clk 0:02:56]}  Qc7 {[%clk 0:03:00]} 11. Bh4 {[%clk 0:02:51]}  Bg4 {[%clk 0:02:56]} 12. Bg3 {[%clk 0:02:50]}  O-O {[%clk 0:02:53]} 13. O-O {[%clk 0:02:48]}  Bh5 {[%clk 0:02:30]} 14. b4 {[%clk 0:02:40]}  Bg6 {[%clk 0:02:24]} 15. Rfc1 {[%clk 0:02:39]}  Bxd3 {[%clk 0:02:16]} 16. Qxd3 {[%clk 0:02:40]}  Bxg3 {[%clk 0:02:17]} 17. hxg3 {[%clk 0:02:39]}  Nb6 {[%clk 0:02:13]} 18. Nd2 {[%clk 0:02:36]}  Qe7 {[%clk 0:02:08]} 19. a4 {[%clk 0:02:28]}  Rfc8 {[%clk 0:02:03]} 20. Rab1 {[%clk 0:02:21]}  Rc7 {[%clk 0:01:59]} 21. Rc2 {[%clk 0:01:46]}  g6 {[%clk 0:01:57]} 22. Ra2 {[%clk 0:01:45]}  Rac8 {[%clk 0:01:54]} 23. Ne2 {[%clk 0:01:41]}  Ne8 {[%clk 0:01:51]} 24. a5 {[%clk 0:01:35]}  Nd7 {[%clk 0:01:49]} 25. Qc2 {[%clk 0:01:32]}  Nd6 {[%clk 0:01:48]} 26. Nf4 {[%clk 0:01:32]}  Nf6 {[%clk 0:01:48]} 27. Nd3 {[%clk 0:01:32]}  Kg7 {[%clk 0:01:47]} 28. Nf3 {[%clk 0:01:15]}  h5 {[%clk 0:01:43]} 29. Kf1 {[%clk 0:01:09]}  Rh8 {[%clk 0:01:43]} 30. Ke2 {[%clk 0:01:09]}  Ng4 {[%clk 0:01:39]} 31. Nde5 {[%clk 0:01:02]}  Ne4 {[%clk 0:01:33]} 32. Nxg4 {[%clk 0:00:51]}  hxg4 {[%clk 0:01:34]} 33. Ne5 {[%clk 0:00:47]}  Qe6 {[%clk 0:01:28]} 34. Nd3 {[%clk 0:00:36]}  Rh2 {[%clk 0:01:25]} 35. Rg1 {[%clk 0:00:36]}  Qf5 {[%clk 0:01:23]} 36. Qb3 {[%clk 0:00:24]}  Re7 {[%clk 0:01:17]} 37. Ke1 {[%clk 0:00:17]}  Nxg3 {[%clk 0:01:07]} 38. fxg3 {[%clk 0:00:18]}  Rxe3+ {[%clk 0:01:07]} 39. Kd2 {[%clk 0:00:19]}  Rxd3+ {[%clk 0:01:08]} 40. Qxd3 {[%clk 0:00:18]}  Qf2+ {[%clk 0:01:08]} 41. Qe2 {[%clk 0:00:18]}  Qxg1 {[%clk 0:01:09]} 42. Qe5+ {[%clk 0:00:18]}  Kh7 {[%clk 0:01:07]} 43. Kc3 {[%clk 0:00:18]}  Qc1+ {[%clk 0:00:56]} 44. Kb3 {[%clk 0:00:15]}  Qb1+ {[%clk 0:00:56]} 45. Rb2 {[%clk 0:00:13]}  Qd3+ {[%clk 0:00:56]} 46. Ka2 {[%clk 0:00:13]}  Qc4+ {[%clk 0:00:56]} 47. Ka3 {[%clk 0:00:12]}  Rh1 {[%clk 0:00:56]} 48. Qe2 {[%clk 0:00:11]}  Ra1+ {[%clk 0:00:55]} 49. Ra2 {[%clk 0:00:09]}  Qxe2 {[%clk 0:00:53]} 0-1


[Site "https://www.chess.com"]

[Event "Titled Tuesday Blitz July 18 Early 2023"]
[White "Svane, Frederik"]
[Black "Alex_Sahakyan2006"]
[WhiteFideId "12923044"]
[WhiteElo "2963"]
[BlackElo "2698"]
[Result "1-0"]
[Round "3"]
[TimeControl "180+2"]
[Date "2023.07.18"]
[WhiteClock "0:00:58"]
[BlackClock "0:00:01"]
[Board "13"]

1. e4 {[%clk 0:03:00]}  e5 {[%clk 0:02:59]} 2. Nf3 {[%clk 0:03:01]}  Nc6 {[%clk 0:02:58]} 3. Bb5 {[%clk 0:03:01]}  Nf6 {[%clk 0:02:57]} 4. O-O {[%clk 0:03:01]}  Nxe4 {[%clk 0:02:57]} 5. d4 {[%clk 0:03:01]}  Nd6 {[%clk 0:02:57]} 6. Bxc6 {[%clk 0:03:02]}  dxc6 {[%clk 0:02:57]} 7. dxe5 {[%clk 0:03:02]}  Nf5 {[%clk 0:02:57]} 8. Qxd8+ {[%clk 0:03:03]}  Kxd8 {[%clk 0:02:58]} 9. h3 {[%clk 0:03:02]}  h5 {[%clk 0:02:52]} 10. Nc3 {[%clk 0:02:59]}  Ke8 {[%clk 0:02:46]} 11. Bf4 {[%clk 0:02:52]}  Be6 {[%clk 0:02:39]} 12. Ng5 {[%clk 0:02:51]}  Rh6 {[%clk 0:02:36]} 13. Rad1 {[%clk 0:02:48]}  Be7 {[%clk 0:02:28]} 14. Rfe1 {[%clk 0:02:35]}  Bb4 {[%clk 0:01:53]} 15. a3 {[%clk 0:02:33]}  Bxc3 {[%clk 0:01:49]} 16. bxc3 {[%clk 0:02:34]}  Rg6 {[%clk 0:01:49]} 17. Kh2 {[%clk 0:02:24]}  a5 {[%clk 0:01:38]} 18. g4 {[%clk 0:02:13]}  hxg4 {[%clk 0:01:33]} 19. hxg4 {[%clk 0:02:14]}  Ne7 {[%clk 0:01:34]} 20. Kg3 {[%clk 0:02:03]}  Nd5 {[%clk 0:01:31]} 21. Bd2 {[%clk 0:02:02]}  b5 {[%clk 0:01:04]} 22. f4 {[%clk 0:02:01]}  Rxg5 {[%clk 0:01:03]} 23. fxg5 {[%clk 0:02:00]}  g6 {[%clk 0:01:04]} 24. c4 {[%clk 0:01:54]}  Nb6 {[%clk 0:00:45]} 25. cxb5 {[%clk 0:01:53]}  cxb5 {[%clk 0:00:46]} 26. Be3 {[%clk 0:01:52]}  Nc4 {[%clk 0:00:43]} 27. Bc5 {[%clk 0:01:52]}  Rd8 {[%clk 0:00:40]} 28. Kf4 {[%clk 0:01:49]}  Rd5 {[%clk 0:00:25]} 29. Rxd5 {[%clk 0:01:44]}  Bxd5 {[%clk 0:00:26]} 30. Rd1 {[%clk 0:01:44]}  c6 {[%clk 0:00:26]} 31. Rd3 {[%clk 0:01:38]}  Kd7 {[%clk 0:00:24]} 32. Rh3 {[%clk 0:01:38]}  Nd2 {[%clk 0:00:16]} 33. Rh8 {[%clk 0:01:28]}  Ne4 {[%clk 0:00:15]} 34. Bb6 {[%clk 0:01:26]}  b4 {[%clk 0:00:11]} 35. a4 {[%clk 0:01:08]}  Nc3 {[%clk 0:00:11]} 36. Bxa5 {[%clk 0:01:04]}  c5 {[%clk 0:00:04]} 37. Rd8+ {[%clk 0:01:04]}  Ke6 {[%clk 0:00:04]} 38. Rd6+ {[%clk 0:01:02]}  Ke7 {[%clk 0:00:05]} 39. Bb6 {[%clk 0:01:00]}  Be6 {[%clk 0:00:02]} 40. Bxc5 {[%clk 0:01:00]}  Ke8 {[%clk 0:00:02]} 41. a5 {[%clk 0:00:58]}  Nd5+ {[%clk 0:00:02]} 42. Kg3 {[%clk 0:00:58]}  Nc7 {[%clk 0:00:02]} 43. a6 {[%clk 0:00:57]}  Bc4 {[%clk 0:00:01]} 44. a7 {[%clk 0:00:57]}  b3 {[%clk 0:00:02]} 45. cxb3 {[%clk 0:00:57]}  Bxb3 {[%clk 0:00:03]} 46. Bb6 {[%clk 0:00:57]}  Na8 {[%clk 0:00:03]} 47. Rd8+ {[%clk 0:00:57]}  Ke7 {[%clk 0:00:01]} 48. Rxa8 {[%clk 0:00:58]} 1-0


[Site "https://www.chess.com"]

[Event "Titled Tuesday Blitz July 18 Early 2023"]
[White "Aravindh, Chithambaram VR."]
[Black "2KRK1"]
[WhiteFideId "5072786"]
[WhiteElo "2949"]
[BlackElo "2689"]
[Result "1-0"]
[Round "3"]
[TimeControl "180+2"]
[Date "2023.07.18"]
[WhiteClock "0:00:30"]
[BlackClock "0:00:00"]
[Board "15"]

1. b3 {[%clk 0:03:00]}  d6 {[%clk 0:02:52]} 2. Bb2 {[%clk 0:03:00]}  e5 {[%clk 0:02:52]} 3. e3 {[%clk 0:02:59]}  Nf6 {[%clk 0:02:50]} 4. d4 {[%clk 0:02:59]}  e4 {[%clk 0:02:40]} 5. c4 {[%clk 0:02:58]}  c6 {[%clk 0:02:40]} 6. d5 {[%clk 0:02:51]}  Be7 {[%clk 0:02:31]} 7. Nc3 {[%clk 0:02:50]}  O-O {[%clk 0:02:32]} 8. Nge2 {[%clk 0:02:49]}  Na6 {[%clk 0:02:05]} 9. Ng3 {[%clk 0:02:38]}  cxd5 {[%clk 0:01:57]} 10. Nxd5 {[%clk 0:02:39]}  Nxd5 {[%clk 0:01:53]} 11. Qxd5 {[%clk 0:02:40]}  Bf6 {[%clk 0:01:53]} 12. Qd2 {[%clk 0:02:21]}  Re8 {[%clk 0:01:39]} 13. Be2 {[%clk 0:02:18]}  d5 {[%clk 0:01:13]} 14. O-O {[%clk 0:02:05]}  dxc4 {[%clk 0:00:42]} 15. Qxd8 {[%clk 0:02:06]}  Bxd8 {[%clk 0:00:43]} 16. Bxc4 {[%clk 0:02:05]}  Nb4 {[%clk 0:00:44]} 17. Rfd1 {[%clk 0:02:00]}  Bg4 {[%clk 0:00:38]} 18. Rd2 {[%clk 0:01:53]}  Ba5 {[%clk 0:00:34]} 19. Bc3 {[%clk 0:01:31]}  Nc6 {[%clk 0:00:34]} 20. Bxa5 {[%clk 0:01:04]}  Nxa5 {[%clk 0:00:34]} 21. Bd5 {[%clk 0:01:04]}  Rad8 {[%clk 0:00:29]} 22. h3 {[%clk 0:01:04]}  Be6 {[%clk 0:00:28]} 23. Rad1 {[%clk 0:01:03]}  Bxd5 {[%clk 0:00:07]} 24. Rxd5 {[%clk 0:01:04]}  Rxd5 {[%clk 0:00:04]} 25. Rxd5 {[%clk 0:01:05]}  b6 {[%clk 0:00:03]} 26. Nxe4 {[%clk 0:01:02]}  h6 {[%clk 0:00:02]} 27. Nd6 {[%clk 0:00:49]}  Rd8 {[%clk 0:00:02]} 28. e4 {[%clk 0:00:48]}  Nc6 {[%clk 0:00:02]} 29. Nb5 {[%clk 0:00:35]}  Re8 {[%clk 0:00:02]} 30. Nc3 {[%clk 0:00:35]}  Rc8 {[%clk 0:00:01]} 31. Rd2 {[%clk 0:00:32]}  Ne5 {[%clk 0:00:01]} 32. Nd5 {[%clk 0:00:32]}  Kf8 {[%clk 0:00:01]} 33. f4 {[%clk 0:00:32]}  Nc6 {[%clk 0:00:00]} 34. Rc2 {[%clk 0:00:30]} 1-0


[Site "https://www.chess.com"]